[Event "Early-Titled-Tuesday-Blitz-May-07-2024"]
[Site "Chess.com"]
[Date "2024.05.07"]
[Round "2"]
[White "ChelsieMonica"]
[Black "Doublekk14"]
[Result "1-0"]
[WhiteElo "2542"]
[BlackElo "2344"]
[TimeControl "180+1"]
[EndTime "8:20:46 PDT"]
[Termination "ChelsieMonica won on time"]

1. e4 {[%clk 0:03:00.9]} 1... c5 {[%clk 0:02:59]} 2. Nf3 {[%clk 0:03:00.6]} 2...
e6 {[%clk 0:02:57.4]} 3. d4 {[%clk 0:03:01]} 3... cxd4 {[%clk 0:02:55.6]} 4.
Nxd4 {[%clk 0:03:01.9]} 4... Nf6 {[%clk 0:02:56.4]} 5. Nc3 {[%clk 0:03:02.3]}
5... Nc6 {[%clk 0:02:56.5]} 6. Nxc6 {[%clk 0:03:00.8]} 6... bxc6 {[%clk
0:02:56.3]} 7. Bd3 {[%clk 0:03:01.7]} 7... d6 {[%clk 0:02:55.4]} 8. O-O {[%clk
0:03:02.6]} 8... e5 {[%clk 0:02:54.7]} 9. f4 {[%clk 0:03:02.1]} 9... exf4 {[%clk
0:02:54.1]} 10. Bxf4 {[%clk 0:03:03]} 10... Be6 {[%clk 0:02:54.1]} 11. Kh1
{[%clk 0:02:59.6]} 11... Be7 {[%clk 0:02:52.1]} 12. Ne2 {[%clk 0:02:58.6]} 12...
Qb6 {[%clk 0:02:50.8]} 13. b3 {[%clk 0:02:56]} 13... O-O {[%clk 0:02:49]} 14.
Ng3 {[%clk 0:02:55.7]} 14... Nd7 {[%clk 0:02:42.6]} 15. e5 {[%clk 0:02:11.6]}
15... Nxe5 {[%clk 0:01:59.8]} 16. Bxe5 {[%clk 0:02:11.2]} 16... dxe5 {[%clk
0:01:56.9]} 17. Qh5 {[%clk 0:02:11.1]} 17... g6 {[%clk 0:01:55.5]} 18. Qxe5
{[%clk 0:02:09.5]} 18... Rad8 {[%clk 0:01:47.2]} 19. Rae1 {[%clk 0:01:24.1]}
19... Qd4 {[%clk 0:01:45.4]} 20. Qxd4 {[%clk 0:01:04.1]} 20... Rxd4 {[%clk
0:01:43.4]} 21. Ne2 {[%clk 0:01:04.5]} 21... Rd7 {[%clk 0:01:27.6]} 22. Nf4
{[%clk 0:01:04.5]} 22... Bd5 {[%clk 0:01:26.9]} 23. Nxd5 {[%clk 0:01:03.4]}
23... cxd5 {[%clk 0:01:26]} 24. c4 {[%clk 0:01:00.6]} 24... d4 {[%clk
0:01:18.1]} 25. Re5 {[%clk 0:00:57]} 25... Bb4 {[%clk 0:01:05.9]} 26. g4 {[%clk
0:00:50.9]} 26... f6 {[%clk 0:00:58.1]} 27. Re6 {[%clk 0:00:40.1]} 27... Rd6
{[%clk 0:00:58.3]} 28. Re4 {[%clk 0:00:32.5]} 28... Kg7 {[%clk 0:00:55.3]} 29.
Kg2 {[%clk 0:00:30.6]} 29... Rf7 {[%clk 0:00:49.1]} 30. Rf2 {[%clk 0:00:30.5]}
30... a5 {[%clk 0:00:47]} 31. h4 {[%clk 0:00:27.8]} 31... Rdd7 {[%clk
0:00:46.9]} 32. Rfe2 {[%clk 0:00:27.3]} 32... Rde7 {[%clk 0:00:45.4]} 33. Kf3
{[%clk 0:00:25.7]} 33... Rxe4 {[%clk 0:00:45]} 34. Rxe4 {[%clk 0:00:26.6]} 34...
Re7 {[%clk 0:00:45.1]} 35. Rxe7+ {[%clk 0:00:26.8]} 35... Bxe7 {[%clk
0:00:44.6]} 36. Ke4 {[%clk 0:00:27.2]} 36... f5+ {[%clk 0:00:31.8]} 37. gxf5
{[%clk 0:00:28.1]} 37... gxf5+ {[%clk 0:00:32]} 38. Kxf5 {[%clk 0:00:24.4]}
38... Bxh4 {[%clk 0:00:31.2]} 39. c5 {[%clk 0:00:20.7]} 39... Bd8 {[%clk
0:00:23.1]} 40. a3 {[%clk 0:00:20.2]} 40... h5 {[%clk 0:00:21.9]} 41. b4 {[%clk
0:00:20]} 41... axb4 {[%clk 0:00:21.6]} 42. axb4 {[%clk 0:00:20.9]} 42... Kf7
{[%clk 0:00:21.7]} 43. Ke5 {[%clk 0:00:20.6]} 43... h4 {[%clk 0:00:12.3]} 44.
Kxd4 {[%clk 0:00:18.6]} 44... Ke6 {[%clk 0:00:12.3]} 45. Bc4+ {[%clk 0:00:18.2]}
45... Kd7 {[%clk 0:00:11.3]} 46. Bd5 {[%clk 0:00:19.1]} 46... h3 {[%clk
0:00:07.5]} 47. Kc4 {[%clk 0:00:19.4]} 47... h2 {[%clk 0:00:07.5]} 48. b5 {[%clk
0:00:20]} 48... Kc8 {[%clk 0:00:05.7]} 49. Be6+ {[%clk 0:00:19.5]} 49... Kb7
{[%clk 0:00:05.2]} 50. Bd5+ {[%clk 0:00:20.4]} 50... Kc8 {[%clk 0:00:05.5]} 51.
Bh1 {[%clk 0:00:21.3]} 51... Bf6 {[%clk 0:00:03.5]} 52. Kd5 {[%clk 0:00:22.2]}
52... Be7 {[%clk 0:00:02.9]} 53. b6 {[%clk 0:00:22.3]} 53... Bd8 {[%clk
0:00:01.1]} 54. Kd6 {[%clk 0:00:21.9]} 1-0

[Event "Early-Titled-Tuesday-Blitz-May-07-2024"]
[Site "Chess.com"]
[Date "2024.05.07"]
[Round "2"]
[White "Unkreativ3"]
[Black "super_emi_26"]
[Result "0-1"]
[WhiteElo "2600"]
[BlackElo "2886"]
[TimeControl "180+1"]
[EndTime "8:20:49 PDT"]
[Termination "super_emi_26 won by resignation"]

1. d4 {[%clk 0:03:00.8]} 1... d5 {[%clk 0:02:59.4]} 2. c4 {[%clk 0:03:00]} 2...
e6 {[%clk 0:02:59.9]} 3. Nc3 {[%clk 0:03:00.2]} 3... Be7 {[%clk 0:03:00.1]} 4.
e4 {[%clk 0:02:59.5]} 4... dxe4 {[%clk 0:02:58.6]} 5. f3 {[%clk 0:02:59.9]} 5...
Nf6 {[%clk 0:02:59.5]} 6. fxe4 {[%clk 0:02:58.2]} 6... e5 {[%clk 0:03:00]} 7.
dxe5 {[%clk 0:02:56.2]} 7... Qxd1+ {[%clk 0:02:59.6]} 8. Kxd1 {[%clk 0:02:55.9]}
8... Ng4 {[%clk 0:02:58.3]} 9. Ke2 {[%clk 0:02:51.4]} 9... Nxe5 {[%clk
0:02:56.2]} 10. b3 {[%clk 0:02:48.4]} 10... Nbc6 {[%clk 0:02:45.1]} 11. Nd5
{[%clk 0:02:45.2]} 11... Nd4+ {[%clk 0:02:25.3]} 12. Kd1 {[%clk 0:02:22.2]}
12... Bg4+ {[%clk 0:02:20]} 13. Ne2 {[%clk 0:02:15.6]} 13... Ne6 {[%clk
0:00:55.8]} 14. Nxe7 {[%clk 0:02:02.2]} 14... Kxe7 {[%clk 0:00:55.1]} 15. Ba3+
{[%clk 0:02:01.9]} 15... c5 {[%clk 0:00:55]} 16. h3 {[%clk 0:02:00.4]} 16...
Rhd8+ {[%clk 0:00:49.9]} 17. Kc1 {[%clk 0:01:49.6]} 17... Nd3+ {[%clk
0:00:49.2]} 18. Kc2 {[%clk 0:01:16.4]} 18... Nf2 {[%clk 0:00:46.2]} 19. hxg4
{[%clk 0:00:46.6]} 19... Nxh1 {[%clk 0:00:46.2]} 20. b4 {[%clk 0:00:40.8]} 20...
Nd4+ {[%clk 0:00:22.2]} 21. Nxd4 {[%clk 0:00:38]} 21... cxd4 {[%clk 0:00:19.1]}
22. Bd3 {[%clk 0:00:32.1]} 22... Nf2 {[%clk 0:00:18.6]} 23. g5 {[%clk
0:00:26.3]} 23... Ke6 {[%clk 0:00:17.1]} 24. Rf1 {[%clk 0:00:19.9]} 24... Ng4
{[%clk 0:00:14.5]} 25. Rh1 {[%clk 0:00:19.8]} 25... g6 {[%clk 0:00:09.9]} 26.
Kd2 {[%clk 0:00:18]} 26... Ne5 {[%clk 0:00:10.1]} 27. c5 {[%clk 0:00:16.8]}
27... b6 {[%clk 0:00:10.2]} 28. c6 {[%clk 0:00:15.7]} 28... a6 {[%clk 0:00:06]}
29. Rf1 {[%clk 0:00:13.6]} 29... b5 {[%clk 0:00:06.5]} 30. Rf6+ {[%clk
0:00:13.3]} 30... Ke7 {[%clk 0:00:07.1]} 31. Bb2 {[%clk 0:00:13.1]} 31... Rd6
{[%clk 0:00:07]} 32. Rxd6 {[%clk 0:00:11.2]} 32... Kxd6 {[%clk 0:00:07.9]} 33.
Bxd4 {[%clk 0:00:11.4]} 33... Nxc6 {[%clk 0:00:08.5]} 34. Bc5+ {[%clk
0:00:10.7]} 34... Ke6 {[%clk 0:00:08.9]} 35. Ke3 {[%clk 0:00:11]} 35... Ne5
{[%clk 0:00:08.9]} 36. Be2 {[%clk 0:00:10.4]} 36... Rd8 {[%clk 0:00:09.5]} 37.
g3 {[%clk 0:00:10.1]} 37... Nc4+ {[%clk 0:00:10]} 38. Kf4 {[%clk 0:00:09.8]}
38... Ne5 {[%clk 0:00:10.6]} 39. Bf1 {[%clk 0:00:09.7]} 39... Nd3+ {[%clk
0:00:09.6]} 40. Ke3 {[%clk 0:00:08.1]} 40... Nxc5 {[%clk 0:00:09.9]} 41. bxc5
{[%clk 0:00:08.3]} 41... Ke5 {[%clk 0:00:10.6]} 42. a4 {[%clk 0:00:04.1]} 42...
bxa4 {[%clk 0:00:09.2]} 43. Bxa6 {[%clk 0:00:03.8]} 43... a3 {[%clk 0:00:09.7]}
44. Bc4 {[%clk 0:00:03.5]} 44... Rc8 {[%clk 0:00:10.4]} 45. Bxf7 {[%clk
0:00:02.1]} 45... Rxc5 {[%clk 0:00:10.9]} 46. Kd3 {[%clk 0:00:02.5]} 46... Rb5
{[%clk 0:00:08.6]} 47. Ba2 {[%clk 0:00:02.3]} 47... Rb2 {[%clk 0:00:08.9]} 0-1

[Event "Early-Titled-Tuesday-Blitz-May-07-2024"]
[Site "Chess.com"]
[Date "2024.05.07"]
[Round "2"]
[White "NastyaHn"]
[Black "DenisQ"]
[Result "1/2-1/2"]
[WhiteElo "2467"]
[BlackElo "2720"]
[TimeControl "180+1"]
[EndTime "8:20:49 PDT"]
[Termination "Game drawn by stalemate"]

1. Nc3 {[%clk 0:02:57]} 1... d5 {[%clk 0:02:59.1]} 2. e4 {[%clk 0:02:56.4]} 2...
dxe4 {[%clk 0:02:58.1]} 3. Nxe4 {[%clk 0:02:55.9]} 3... Bf5 {[%clk 0:02:41.3]}
4. Ng3 {[%clk 0:02:54]} 4... Bg6 {[%clk 0:02:40.9]} 5. N1e2 {[%clk 0:02:50.8]}
5... e6 {[%clk 0:02:36.6]} 6. d4 {[%clk 0:02:46.8]} 6... Bd6 {[%clk 0:02:33.4]}
7. Nf4 {[%clk 0:02:45.2]} 7... Qh4 {[%clk 0:02:27.6]} 8. Nxg6 {[%clk 0:02:07.2]}
8... hxg6 {[%clk 0:02:25.7]} 9. Qf3 {[%clk 0:02:06.5]} 9... c6 {[%clk
0:02:02.6]} 10. c3 {[%clk 0:02:04.9]} 10... Nf6 {[%clk 0:02:01.5]} 11. Bd3
{[%clk 0:02:01.3]} 11... Nbd7 {[%clk 0:02:00.8]} 12. Bd2 {[%clk 0:01:51.9]}
12... e5 {[%clk 0:01:58.2]} 13. O-O-O {[%clk 0:01:40.7]} 13... O-O {[%clk
0:01:55.9]} 14. Bc2 {[%clk 0:01:32]} 14... exd4 {[%clk 0:01:53.3]} 15. cxd4
{[%clk 0:01:31.4]} 15... Rfe8 {[%clk 0:01:23]} 16. Be3 {[%clk 0:01:02]} 16...
Nb6 {[%clk 0:01:12.2]} 17. Ne2 {[%clk 0:00:51.6]} 17... Nbd5 {[%clk 0:01:08.8]}
18. Bd2 {[%clk 0:00:32]} 18... Qg4 {[%clk 0:01:04]} 19. Nc3 {[%clk 0:00:26.3]}
19... Qxd4 {[%clk 0:00:56.2]} 20. Nxd5 {[%clk 0:00:17.7]} 20... Qxd5 {[%clk
0:00:54.2]} 21. Bb3 {[%clk 0:00:12.2]} 21... Qxf3 {[%clk 0:00:53.2]} 22. gxf3
{[%clk 0:00:12.7]} 22... Bc5 {[%clk 0:00:48.7]} 23. Bc3 {[%clk 0:00:11.7]} 23...
Rad8 {[%clk 0:00:45.6]} 24. Rhf1 {[%clk 0:00:07.4]} 24... Rxd1+ {[%clk
0:00:42.6]} 25. Rxd1 {[%clk 0:00:07.2]} 25... Nd5 {[%clk 0:00:22]} 26. Bxd5
{[%clk 0:00:06.4]} 26... cxd5 {[%clk 0:00:22.1]} 27. Rxd5 {[%clk 0:00:06.5]}
27... Bxf2 {[%clk 0:00:22]} 28. Rd7 {[%clk 0:00:06.7]} 28... b5 {[%clk
0:00:21.1]} 29. Kc2 {[%clk 0:00:05.1]} 29... Re2+ {[%clk 0:00:19.2]} 30. Kb3
{[%clk 0:00:02.9]} 30... Bb6 {[%clk 0:00:13.5]} 31. Kb4 {[%clk 0:00:02.1]} 31...
Rxh2 {[%clk 0:00:09.3]} 32. Kxb5 {[%clk 0:00:02.5]} 32... Rf2 {[%clk 0:00:09]}
33. a4 {[%clk 0:00:02.3]} 33... Rxf3 {[%clk 0:00:08.4]} 34. a5 {[%clk
0:00:02.7]} 34... Bg1 {[%clk 0:00:07.5]} 35. a6 {[%clk 0:00:03.1]} 35... Rf5+
{[%clk 0:00:06.9]} 36. Kc6 {[%clk 0:00:02]} 36... g5 {[%clk 0:00:04.7]} 37. Kb7
{[%clk 0:00:01.8]} 37... g4 {[%clk 0:00:04.5]} 38. Rd8+ {[%clk 0:00:02.2]} 38...
Kh7 {[%clk 0:00:04]} 39. Rd1 {[%clk 0:00:02.8]} 39... Bf2 {[%clk 0:00:03.6]} 40.
Rd2 {[%clk 0:00:02.5]} 40... g3 {[%clk 0:00:03.7]} 41. Bd4 {[%clk 0:00:02.7]}
41... Bxd4 {[%clk 0:00:03.2]} 42. Rxd4 {[%clk 0:00:03]} 42... Rg5 {[%clk
0:00:03.6]} 43. Rd1 {[%clk 0:00:02.4]} 43... Rb5+ {[%clk 0:00:03.4]} 44. Kxa7
{[%clk 0:00:01.8]} 44... Rxb2 {[%clk 0:00:04.1]} 45. Ka8 {[%clk 0:00:01.8]}
45... f5 {[%clk 0:00:03.6]} 46. a7 {[%clk 0:00:02.3]} 46... f4 {[%clk
0:00:03.9]} 47. Rh1+ {[%clk 0:00:02.3]} 47... Kg6 {[%clk 0:00:04.1]} 48. Rh6+
{[%clk 0:00:02.5]} 48... Kf5 {[%clk 0:00:04]} 49. Rf6+ {[%clk 0:00:02.8]} 49...
Ke5 {[%clk 0:00:03.8]} 50. Re6+ {[%clk 0:00:03.1]} 50... Kd4 {[%clk 0:00:04.2]}
51. Re4+ {[%clk 0:00:02.9]} 51... Kd3 {[%clk 0:00:03.5]} 52. Re3+ {[%clk
0:00:03.3]} 52... Kd4 {[%clk 0:00:00.1]} 53. Re4+ {[%clk 0:00:03.5]} 53... Kxe4
{[%clk 0:00:00.3]} 1/2-1/2

[Event "Early-Titled-Tuesday-Blitz-May-07-2024"]
[Site "Chess.com"]
[Date "2024.05.07"]
[Round "2"]
[White "jefferyx"]
[Black "SRob2003"]
[Result "1-0"]
[WhiteElo "3123"]
[BlackElo "2659"]
[TimeControl "180+1"]
[EndTime "8:20:56 PDT"]
[Termination "jefferyx won by resignation"]

1. e4 {[%clk 0:03:00.9]} 1... c5 {[%clk 0:02:59.4]} 2. Nf3 {[%clk 0:03:00.6]}
2... d6 {[%clk 0:02:59.8]} 3. Nc3 {[%clk 0:03:00.9]} 3... Nc6 {[%clk 0:02:57.9]}
4. d4 {[%clk 0:03:00.9]} 4... cxd4 {[%clk 0:02:58.1]} 5. Nxd4 {[%clk 0:03:01.8]}
5... Nf6 {[%clk 0:02:57.9]} 6. Bg5 {[%clk 0:03:01.3]} 6... e6 {[%clk 0:02:49.8]}
7. Qd3 {[%clk 0:03:01.1]} 7... Be7 {[%clk 0:02:47.6]} 8. O-O-O {[%clk
0:03:00.8]} 8... a6 {[%clk 0:02:47.1]} 9. f4 {[%clk 0:02:56.3]} 9... Qc7 {[%clk
0:02:46.6]} 10. Be2 {[%clk 0:02:33.6]} 10... Bd7 {[%clk 0:02:44.2]} 11. Bf3
{[%clk 0:02:21.9]} 11... Rc8 {[%clk 0:02:27]} 12. Rhe1 {[%clk 0:02:21.1]} 12...
h6 {[%clk 0:02:17.7]} 13. Bh4 {[%clk 0:02:17.2]} 13... g5 {[%clk 0:02:17.6]} 14.
Nxc6 {[%clk 0:01:53.7]} 14... Bxc6 {[%clk 0:02:04.1]} 15. fxg5 {[%clk
0:01:54.6]} 15... Nh7 {[%clk 0:02:03.3]} 16. Rf1 {[%clk 0:01:17.3]} 16... hxg5
{[%clk 0:01:26.9]} 17. Bg3 {[%clk 0:01:16.9]} 17... Rd8 {[%clk 0:01:22.4]} 18.
Kb1 {[%clk 0:00:48.6]} 18... Nf6 {[%clk 0:01:21.6]} 19. h3 {[%clk 0:00:49]}
19... Nd7 {[%clk 0:01:15.1]} 20. Qe2 {[%clk 0:00:47.5]} 20... Ne5 {[%clk
0:01:07.5]} 21. Bh5 {[%clk 0:00:44.5]} 21... Rh7 {[%clk 0:01:07.5]} 22. Rf2
{[%clk 0:00:32.7]} 22... b5 {[%clk 0:01:05.2]} 23. Rdf1 {[%clk 0:00:31]} 23...
b4 {[%clk 0:00:44.7]} 24. Bxe5 {[%clk 0:00:31]} 24... dxe5 {[%clk 0:00:44.6]}
25. Rxf7 {[%clk 0:00:31.1]} 25... Rxf7 {[%clk 0:00:27.9]} 26. Bxf7+ {[%clk
0:00:32]} 26... Kd7 {[%clk 0:00:27.2]} 27. Qg4 {[%clk 0:00:32.6]} 27... Kc8
{[%clk 0:00:21.2]} 28. Bxe6+ {[%clk 0:00:32.8]} 28... Kb8 {[%clk 0:00:21.7]} 29.
Nd5 {[%clk 0:00:32.5]} 29... Bxd5 {[%clk 0:00:19.3]} 30. Bxd5 {[%clk 0:00:32]}
30... a5 {[%clk 0:00:16]} 31. Qe2 {[%clk 0:00:29.8]} 31... Qb6 {[%clk
0:00:14.6]} 32. Rf7 {[%clk 0:00:23.3]} 32... Qg1+ {[%clk 0:00:13.1]} 33. Qf1
{[%clk 0:00:23]} 33... Qxf1+ {[%clk 0:00:12.9]} 34. Rxf1 {[%clk 0:00:23.9]}
34... Rf8 {[%clk 0:00:12.1]} 35. Rf5 {[%clk 0:00:23.6]} 35... Kc7 {[%clk
0:00:06.8]} 36. g3 {[%clk 0:00:09.1]} 36... Kd6 {[%clk 0:00:06.7]} 37. Rxf8
{[%clk 0:00:09.2]} 37... Bxf8 {[%clk 0:00:07]} 38. h4 {[%clk 0:00:10.1]} 38...
gxh4 {[%clk 0:00:06.9]} 39. gxh4 {[%clk 0:00:11]} 39... Bh6 {[%clk 0:00:07.7]}
40. c3 {[%clk 0:00:08.2]} 40... bxc3 {[%clk 0:00:08.2]} 41. bxc3 {[%clk
0:00:09.1]} 41... Kc5 {[%clk 0:00:09.1]} 42. Kc2 {[%clk 0:00:09.7]} 42... Bf4
{[%clk 0:00:08.5]} 43. Kb3 {[%clk 0:00:09.9]} 43... Kb6 {[%clk 0:00:08.3]} 44.
Ka4 {[%clk 0:00:10.2]} 44... Bg3 {[%clk 0:00:08.1]} 45. h5 {[%clk 0:00:09.8]}
45... Bf4 {[%clk 0:00:09]} 46. Kb3 {[%clk 0:00:09.3]} 46... Bd2 {[%clk
0:00:09.2]} 47. Kc4 {[%clk 0:00:09.2]} 47... Bf4 {[%clk 0:00:09]} 48. Bf7 {[%clk
0:00:08.5]} 48... Kc7 {[%clk 0:00:06.1]} 49. Kd5 {[%clk 0:00:08.1]} 49... Kd7
{[%clk 0:00:06.5]} 50. c4 {[%clk 0:00:08.5]} 50... Ke7 {[%clk 0:00:06.6]} 51.
Bg6 {[%clk 0:00:08.1]} 51... Kd7 {[%clk 0:00:07.1]} 52. c5 {[%clk 0:00:09]}
52... Be3 {[%clk 0:00:07.2]} 53. c6+ {[%clk 0:00:08.4]} 53... Kc7 {[%clk
0:00:07.6]} 54. Be8 {[%clk 0:00:08.7]} 54... Bf4 {[%clk 0:00:08.2]} 55. Ke6
{[%clk 0:00:09.1]} 55... Kd8 {[%clk 0:00:07.8]} 56. Bd7 {[%clk 0:00:09.3]} 56...
a4 {[%clk 0:00:08.2]} 57. Kd6 {[%clk 0:00:09.1]} 1-0

[Event "Early-Titled-Tuesday-Blitz-May-07-2024"]
[Site "Chess.com"]
[Date "2024.05.07"]
[Round "2"]
[White "CruzWilliam"]
[Black "FREDERICKtheMATE"]
[Result "0-1"]
[WhiteElo "2396"]
[BlackElo "2700"]
[TimeControl "180+1"]
[EndTime "8:20:58 PDT"]
[Termination "FREDERICKtheMATE won by resignation"]

1. d4 {[%clk 0:02:57.3]} 1... Nf6 {[%clk 0:02:59.7]} 2. c4 {[%clk 0:02:57.1]}
2... e6 {[%clk 0:02:59.8]} 3. Nc3 {[%clk 0:02:57.6]} 3... d5 {[%clk 0:02:59.9]}
4. cxd5 {[%clk 0:02:57.3]} 4... exd5 {[%clk 0:02:59.9]} 5. Bg5 {[%clk
0:02:57.8]} 5... c6 {[%clk 0:03:00.5]} 6. e3 {[%clk 0:02:57.9]} 6... Be7 {[%clk
0:02:59.6]} 7. Bd3 {[%clk 0:02:57.8]} 7... Nbd7 {[%clk 0:02:58.3]} 8. Qc2 {[%clk
0:02:57.9]} 8... Nh5 {[%clk 0:02:58.1]} 9. Bxe7 {[%clk 0:02:56.1]} 9... Qxe7
{[%clk 0:02:59]} 10. Nge2 {[%clk 0:02:56.4]} 10... Nb6 {[%clk 0:02:57.7]} 11. h3
{[%clk 0:02:48.9]} 11... g6 {[%clk 0:02:57.3]} 12. O-O {[%clk 0:02:43.9]} 12...
Ng7 {[%clk 0:02:56.6]} 13. Ng3 {[%clk 0:02:40]} 13... h5 {[%clk 0:02:56.4]} 14.
e4 {[%clk 0:02:12.7]} 14... h4 {[%clk 0:02:56.1]} 15. exd5 {[%clk 0:02:08.1]}
15... cxd5 {[%clk 0:02:49.1]} 16. Rfe1 {[%clk 0:02:07.7]} 16... Ne6 {[%clk
0:02:46.8]} 17. Nge2 {[%clk 0:02:00.7]} 17... O-O {[%clk 0:02:46.4]} 18. Nf4
{[%clk 0:01:54.2]} 18... Qg5 {[%clk 0:02:40.3]} 19. Nxe6 {[%clk 0:01:36.1]}
19... Bxe6 {[%clk 0:02:41.2]} 20. Re5 {[%clk 0:01:23.7]} 20... Qf6 {[%clk
0:02:34.6]} 21. Rae1 {[%clk 0:01:05.8]} 21... Rfe8 {[%clk 0:02:33.1]} 22. Qe2
{[%clk 0:00:44]} 22... Bd7 {[%clk 0:02:29]} 23. Qd2 {[%clk 0:00:33.3]} 23... Bc6
{[%clk 0:02:27.5]} 24. b3 {[%clk 0:00:25.5]} 24... Kg7 {[%clk 0:02:26.9]} 25.
R1e3 {[%clk 0:00:23.9]} 25... Qf4 {[%clk 0:02:22.2]} 26. Ne2 {[%clk 0:00:21.3]}
26... Qh6 {[%clk 0:02:18.7]} 27. Qb4 {[%clk 0:00:13.4]} 27... Qh8 {[%clk
0:02:09.1]} 28. Qd6 {[%clk 0:00:11.2]} 28... Qf8 {[%clk 0:02:08.6]} 29. Qxf8+
{[%clk 0:00:10.5]} 29... Kxf8 {[%clk 0:02:08.8]} 30. Nc3 {[%clk 0:00:10.5]}
30... Nd7 {[%clk 0:02:06.8]} 31. Rxe8+ {[%clk 0:00:09.7]} 31... Rxe8 {[%clk
0:02:07.7]} 32. Rxe8+ {[%clk 0:00:08.9]} 32... Kxe8 {[%clk 0:02:08.6]} 33. g3
{[%clk 0:00:07.6]} 33... hxg3 {[%clk 0:02:08.1]} 34. fxg3 {[%clk 0:00:07.9]}
34... Nf8 {[%clk 0:02:09]} 35. Ne2 {[%clk 0:00:07.2]} 35... Ne6 {[%clk 0:02:09]}
36. Kf2 {[%clk 0:00:07.8]} 36... Ke7 {[%clk 0:02:07.9]} 37. Ke3 {[%clk
0:00:07.9]} 37... a5 {[%clk 0:02:05.3]} 38. h4 {[%clk 0:00:08.3]} 38... b6
{[%clk 0:02:04.3]} 39. Nf4 {[%clk 0:00:08.3]} 39... Ng7 {[%clk 0:02:02.8]} 40.
g4 {[%clk 0:00:08.2]} 40... Kf6 {[%clk 0:02:00.4]} 41. h5 {[%clk 0:00:06.6]}
41... gxh5 {[%clk 0:01:58.6]} 42. Nxh5+ {[%clk 0:00:06.1]} 42... Nxh5 {[%clk
0:01:58.7]} 43. gxh5 {[%clk 0:00:06.8]} 43... Kg5 {[%clk 0:01:59.3]} 44. Be2
{[%clk 0:00:07.1]} 44... Bd7 {[%clk 0:01:55.8]} 45. Bf3 {[%clk 0:00:07.6]} 45...
Be6 {[%clk 0:01:55.8]} 46. a3 {[%clk 0:00:06]} 46... f6 {[%clk 0:01:54.7]} 47.
b4 {[%clk 0:00:05.9]} 47... axb4 {[%clk 0:01:54.2]} 48. axb4 {[%clk 0:00:05.9]}
48... f5 {[%clk 0:01:54.5]} 49. Be2 {[%clk 0:00:05.8]} 49... f4+ {[%clk
0:01:54.6]} 50. Kf2 {[%clk 0:00:05.9]} 50... Bf7 {[%clk 0:01:52]} 51. Bf3 {[%clk
0:00:06.2]} 51... Kf5 {[%clk 0:01:43.2]} 52. Bg2 {[%clk 0:00:04.8]} 52... Kg5
{[%clk 0:01:32.2]} 53. Bf3 {[%clk 0:00:05.4]} 53... Be6 {[%clk 0:01:31.4]} 54.
Be2 {[%clk 0:00:04.8]} 54... Bg8 {[%clk 0:01:25.3]} 55. Bf3 {[%clk 0:00:05.2]}
55... Bf7 {[%clk 0:01:25.4]} 56. Kg2 {[%clk 0:00:04]} 56... Bxh5 {[%clk
0:01:23.9]} 57. Bxd5 {[%clk 0:00:03.9]} 57... Kf5 {[%clk 0:01:23.7]} 58. Kf2
{[%clk 0:00:04.3]} 58... Be8 {[%clk 0:01:21.3]} 59. Bf3 {[%clk 0:00:03.7]} 59...
Bb5 {[%clk 0:01:20.4]} 60. Ke1 {[%clk 0:00:03.5]} 60... Kg5 {[%clk 0:01:20.1]}
61. Kf2 {[%clk 0:00:03.2]} 61... Bc4 {[%clk 0:01:18.7]} 62. Be4 {[%clk 0:00:03]}
62... Kg4 {[%clk 0:01:18.7]} 63. Bf3+ {[%clk 0:00:02.8]} 63... Kf5 {[%clk
0:01:19.5]} 64. Bg2 {[%clk 0:00:03.1]} 64... Bd3 {[%clk 0:01:18.8]} 65. Bc6
{[%clk 0:00:02.9]} 65... Be4 {[%clk 0:01:19]} 66. Bd7+ {[%clk 0:00:02.6]} 66...
Kf6 {[%clk 0:01:19.5]} 67. Bg4 {[%clk 0:00:02.5]} 67... Ke7 {[%clk 0:01:19.9]}
68. Bf3 {[%clk 0:00:02.5]} 68... Bf5 {[%clk 0:01:19.2]} 69. Bg2 {[%clk
0:00:01.8]} 69... Kd6 {[%clk 0:01:19.3]} 70. Bf3 {[%clk 0:00:02]} 70... Be6
{[%clk 0:01:18.7]} 71. Bg2 {[%clk 0:00:01.8]} 71... Bd5 {[%clk 0:01:19.3]} 72.
Bf1 {[%clk 0:00:01.8]} 72... Kc6 {[%clk 0:01:15.4]} 73. Bd3 {[%clk 0:00:02.1]}
73... Bh1 {[%clk 0:01:14.6]} 74. Be2 {[%clk 0:00:01.7]} 74... Kd5 {[%clk
0:01:14.3]} 75. Bf1 {[%clk 0:00:01.2]} 75... Kxd4 {[%clk 0:01:13.7]} 76. Bb5
{[%clk 0:00:01.4]} 76... Kc3 {[%clk 0:01:13.2]} 77. Ba6 {[%clk 0:00:01.3]} 77...
Kxb4 {[%clk 0:01:13.3]} 78. Kg1 {[%clk 0:00:01.8]} 78... Be4 {[%clk 0:01:12.8]}
79. Kf2 {[%clk 0:00:02.7]} 79... Kc3 {[%clk 0:01:13.1]} 80. Ke1 {[%clk
0:00:02.8]} 80... Kd4 {[%clk 0:01:13.2]} 81. Kd2 {[%clk 0:00:03.2]} 81... Kc5
{[%clk 0:01:13.3]} 82. Kc3 {[%clk 0:00:03.5]} 82... b5 {[%clk 0:01:13.2]} 83.
Bc8 {[%clk 0:00:03.6]} 83... b4+ {[%clk 0:01:13.6]} 84. Kb2 {[%clk 0:00:03.6]}
84... f3 {[%clk 0:01:13.5]} 85. Bh3 {[%clk 0:00:04.5]} 85... f2 {[%clk
0:01:13.4]} 86. Bf1 {[%clk 0:00:05.4]} 86... Bd5 {[%clk 0:01:12.3]} 87. Bg2
{[%clk 0:00:05.7]} 87... Bc4 {[%clk 0:01:13]} 88. Bh3 {[%clk 0:00:05.8]} 88...
f1=Q {[%clk 0:01:13.3]} 89. Bxf1 {[%clk 0:00:06.7]} 89... Bxf1 {[%clk
0:01:12.7]} 90. Kb3 {[%clk 0:00:07.6]} 90... Bc4+ {[%clk 0:01:13.4]} 0-1